bitfinex-derivatives/quotes_ETHF0:USTF0_20260310
["timestamp","ask_amount","ask_price","bid_price","bid_amount"]
[1773174841300,6.408,2044.0,2043.5,2.63175128]
[1773174841705,8.95508999,2044.0,2043.5,2.63175128]
[1773174842510,0.00560428,2044.2,2043.5,2.63175128]
[1773174842706,2.55269427,2044.2,2043.5,2.63175128]
[1773174842907,2.55269427,2044.2,2043.5,0.00513026]
[1773174842908,2.54708999,2044.0,2043.5,0.00513026]
[1773174843207,2.54708999,2044.0,2043.5,2.56859253]
[1773174847908,2.27382999,2044.2,2043.6,2.56346227]
[1773174848913,2.27768765,2044.2,2043.6,2.56346227]
[1773174850212,2.27768765,2044.2,2043.7,2.56346227]
[1773174853619,2.27768765,2044.2,2043.7,4.47774329]
[1773174854018,2.27768765,2044.2,2043.8,2.56346227]
[1773174854518,6.409,2044.1,2044.0,2.56346227]
[1773174854916,8.95608999,2044.3,2044.0,2.56346227]
[1773174855617,8.96201143,2044.3,2044.0,2.56346227]
[1773174855817,8.96201143,2044.3,2043.9,2.56346227]
[1773174857814,2.54708999,2044.5,2044.0,1.91428102]
[1773174858020,6.409,2044.4,2044.2,2.56346227]
[1773174858217,6.409,2044.4,2044.1,2.56346227]
[1773174858218,8.95608999,2044.4,2044.1,2.56346227]
[1773174858919,2.5521494,2044.4,2044.1,2.56346227]
[1773174859121,8.9611494,2044.4,2044.1,2.56346227]
[1773174859315,6.409,2044.6,2044.3,3.45690111]
[1773174860324,9.99427864,2044.6,2044.3,3.45690111]
[1773174861423,3.58066959,2044.5,2044.1,3.45690111]
[1773174862524,3.58066959,2044.7,2044.4,3.45690111]
[1773174862726,3.58066959,2044.7,2044.2,3.45690111]
[1773174863426,3.58500506,2044.7,2044.2,3.45690111]
[1773174864725,3.58066959,2044.2,2043.7,3.45690111]
[1773174864929,1.91428102,2044.3,2043.8,3.45690111]
[1773174864930,6.408,2044.1,2043.8,3.45690111]
[1773174865426,3.58066959,2044.2,2043.8,3.45690111]
[1773174865728,9.98866959,2044.2,2043.8,3.45690111]
[1773174866124,6.408,2044.4,2044.1,5.37118213]
[1773174866328,9.98866959,2044.4,2044.1,5.37118213]
[1773174866525,3.58066959,2044.3,2043.8,3.45690111]
[1773174868123,3.58066959,2044.3,2044.0,3.45690111]
[1773174869926,3.58066959,2044.3,2043.9,5.37118213]
[1773174870127,3.58066959,2044.3,2043.9,3.45690111]
[1773174870624,3.58066959,2044.3,2043.7,12.93746698]
[1773174870829,3.58066959,2044.3,2043.7,5.37118213]
[1773174871020,3.58066959,2044.3,2043.8,3.45690111]
[1773174873723,3.58066959,2044.3,2043.7,3.45690111]
[1773174873928,3.58066959,2044.3,2043.5,1.91941128]
[1773174874124,3.58066959,2044.3,2043.5,5.37631239]
[1773174874730,3.58066959,2044.3,2043.5,12.94259724]
[1773174878431,3.58066959,2044.3,2043.5,7.57141511]
[1773174878639,3.58066959,2044.3,2043.3,3.45690111]
[1773174878640,3.58066959,2043.6,2043.0,3.45690111]
[1773174879333,3.58066959,2043.6,2043.1,3.45690111]
[1773174879836,3.58066959,2043.6,2043.1,3.4603389]
[1773174880834,3.58066959,2043.5,2043.1,3.4603389]
[1773174881028,6.409,2043.6,2043.1,3.4603389]
[1773174881837,9.98966959,2043.6,2043.1,3.4603389]
[1773174882336,3.58066959,2043.5,2043.1,3.4603389]
[1773174884241,3.58066959,2043.5,2042.7,10.14338497]
[1773174884242,3.58066959,2043.4,2042.7,3.45690111]
[1773174884642,3.58066959,2043.4,2042.9,3.45690111]
[1773174885043,3.58066959,2043.4,2042.9,3.4620748]
[1773174887236,1.91428102,2043.9,2043.1,3.56060046]
[1773174887441,3.43474728,2043.7,2043.1,3.56060046]
[1773174888542,9.84474728,2043.7,2043.4,5.47488148]
[1773174889044,6.41,2043.7,2043.5,3.56060046]
[1773174889641,2.99823857,2043.8,2043.5,3.56060046]
[1773174889845,9.98223856,2043.9,2043.6,5.39495366]
[1773174891150,3.57223856,2044.3,2043.7,3.48067264]
[1773174891346,3.57223856,2044.1,2043.7,3.48067264]
[1773174893647,9.98123856,2044.0,2043.7,3.48067264]
[1773174897748,3.57223856,2044.1,2043.7,3.48067264]
[1773174897949,3.48823281,2044.6,2043.9,3.48067264]
[1773174898152,0.00433547,2044.7,2043.9,3.48067264]
[1773174898153,3.48823281,2044.4,2043.9,3.48067264]
[1773174898449,9.8966848,2044.3,2043.9,3.48067264]
[1773174898650,6.409,2044.2,2043.9,3.48067264]
[1773174898846,7.57354378,2045.1,2044.1,3.48067264]
[1773174899151,3.57223856,2044.8,2044.1,3.48067264]
[1773174899351,3.57223856,2044.7,2044.3,3.48067264]
[1773174900049,3.57223856,2044.7,2043.6,1.91428102]
[1773174900050,3.57815278,2044.7,2043.7,5.39495366]
[1773174900353,3.57815278,2044.7,2043.8,3.48067264]
[1773174900552,3.57815278,2044.7,2043.7,1.91428102]
[1773174900553,3.57815278,2044.7,2044.0,3.48067264]
[1773174900751,9.98123856,2044.6,2044.2,3.48067264]
[1773174901143,3.57223856,2044.5,2044.0,3.48067264]
[1773174901343,3.57223856,2044.2,2043.6,3.48067264]
[1773174901550,3.57223856,2044.4,2043.8,3.48067264]
[1773174901750,9.98123856,2044.3,2043.8,3.48067264]
[1773174902148,3.57223856,2044.2,2043.8,3.48067264]
[1773174902655,9.98123856,2044.3,2043.8,3.48067264]
[1773174902855,6.409,2044.3,2043.8,3.48067264]
[1773174903357,9.98123856,2044.3,2043.8,3.48067264]
[1773174903757,3.57223856,2044.3,2043.8,3.48067264]
[1773174904061,9.98023856,2044.3,2043.8,3.48067264]
[1773174904457,3.57223856,2044.2,2043.8,3.48067264]
[1773174905353,9.98023856,2044.6,2044.1,3.48067264]
[1773174905559,3.57223856,2044.5,2044.1,3.48067264]
[1773174907159,3.57223856,2044.5,2044.0,5.39495366]
[1773174908665,3.57223856,2044.5,2044.0,3.48067264]
[1773174913965,9.95228756,2044.6,2044.0,3.48067264]
[1773174914158,6.408,2044.6,2044.2,3.48067264]
[1773174914763,0.00591422,2044.7,2044.2,3.48067264]
[1773174914967,3.57815278,2044.7,2044.2,3.48067264]
[1773174915663,9.98615278,2044.7,2044.2,3.48067264]
[1773174917467,3.57815278,2044.7,2044.2,3.48067264]
[1773174917668,0.00591422,2044.7,2044.2,3.48067264]
[1773174918167,3.57815278,2044.7,2044.2,3.48067264]
[1773174919464,0.00591422,2044.7,2044.2,3.48067264]
[1773174922477,3.71460943,2044.7,2044.2,3.48067264]
[1773174922672,3.95913943,2044.7,2043.9,3.76868483]
[1773174922975,3.95913943,2044.7,2043.4,3.76868483]
[1773174926375,3.95913943,2044.7,2043.5,0.24466]
[1773174926583,3.70869521,2045.0,2043.8,3.76868483]
[1773174926774,3.70869521,2045.0,2044.0,3.76868483]
[1773174926974,10.11669521,2045.1,2044.0,3.76868483]
[1773174927776,10.12270437,2045.1,2044.0,3.76868483]
[1773174932382,3.70552626,2045.0,2044.0,3.76868483]
[1773174932881,3.70552626,2045.0,2044.1,3.76868483]
[1773174933071,3.69521328,2045.1,2044.1,3.76868483]
[1773174933275,3.69521328,2045.1,2043.9,6.65261]
[1773174933276,10.09556738,2045.3,2044.3,3.76868483]
[1773174933480,3.68856738,2045.5,2044.5,3.76868483]
[1773174934180,3.69314938,2045.5,2044.5,3.77467308]
[1773174934390,3.67200684,2045.8,2044.9,3.76868483]
[1773174934582,3.67200684,2046.0,2045.1,3.76868483]
[1773174935385,3.67727187,2046.0,2045.1,3.76868483]
[1773174948782,3.67727187,2046.0,2044.9,3.55161301]
[1773174950692,3.439725,2045.8,2044.9,3.55161301]
[1773174951392,3.684115,2045.8,2044.9,3.55161301]
[1773174953591,3.684115,2045.8,2044.6,3.31403464]
[1773174954788,0.24437,2045.9,2044.6,3.55855464]
[1773174954987,3.34645135,2045.6,2044.6,3.31403464]
[1773174955386,3.33522815,2045.5,2044.6,3.31403464]
[1773174960490,5.12519986,2045.3,2044.6,3.31403464]
[1773174960695,3.2129044,2045.2,2044.6,3.31403464]
[1773174971103,3.01953435,2045.0,2044.6,3.31403464]
[1773174974706,3.01953435,2045.0,2044.5,3.32002289]
[1773174975110,2.89700239,2044.6,2044.1,3.31403464]
[1773174976002,2.89700239,2044.6,2044.1,3.31805659]
[1773174976706,6.406,2044.7,2043.6,3.31403464]
[1773174976707,3.12880559,2044.2,2043.6,3.31403464]
[1773174976904,2.88422559,2044.1,2043.6,3.31403464]
[1773174977605,2.88847312,2044.1,2043.6,3.3190875]
[1773174979206,0.00424753,2044.1,2043.6,3.3190875]
[1773174979706,2.83664397,2044.1,2043.6,3.3190875]
[1773174980304,2.82058917,2044.1,2043.6,3.3190875]
[1773174980706,0.00424753,2044.1,2043.6,3.3190875]
[1773174981108,6.407,2044.3,2043.8,3.38167182]
[1773174981313,2.80534771,2044.8,2044.2,3.38167182]
[1773174981509,6.407,2044.9,2043.7,1.91292055]
[1773174981510,9.21234771,2044.9,2044.4,3.38167182]
[1773174982108,2.78999694,2044.8,2044.4,3.38167182]
[1773174983013,2.77393633,2044.5,2043.8,3.38167182]
[1773174983211,2.77393633,2044.3,2043.8,3.38167182]
[1773174990121,2.77393633,2044.3,2043.7,3.38167182]
[1773175002831,3.01850633,2044.3,2043.7,3.38167182]
[1773175003029,3.01850633,2044.3,2043.6,3.38672468]
[1773175006127,2.33879721,2044.6,2043.6,3.38672468]
[1773175006324,2.33879721,2044.4,2043.6,3.38672468]
[1773175007033,2.58335721,2044.4,2043.6,3.38672468]
[1773175007531,1.91469433,2044.3,2043.6,3.38672468]
[1773175007733,2.32155486,2044.1,2043.6,3.38672468]
[1773175011032,1.91469433,2044.1,2043.6,3.38672468]
[1773175011239,2.27556393,2044.0,2043.6,3.38672468]
[1773175013539,8.60282277,2044.2,2043.6,3.38672468]
[1773175014040,2.17938709,2044.0,2043.6,3.38672468]
[1773175018340,2.17938709,2044.0,2043.6,0.90864882]
[1773175019239,2.17938709,2044.0,2043.6,0.91218624]
[1773175019839,3.03983159,2043.6,2043.0,2.89422798]
[1773175020037,3.03983159,2043.8,2043.2,2.89422798]
[1773175020238,6.409,2043.7,2043.3,1.91469433]
[1773175020434,6.409,2043.8,2043.4,2.89422798]
[1773175020640,3.03983159,2044.0,2043.4,2.89422798]
[1773175020839,6.409,2043.9,2043.4,2.89858975]
[1773175022039,3.03983159,2044.0,2043.4,2.89858975]
[1773175022239,6.409,2044.0,2043.4,2.89858975]
[1773175022444,4.95452592,2044.3,2043.4,2.89858975]
[1773175022639,4.95452592,2044.3,2043.5,1.91469433]
[1773175022843,4.95452592,2044.3,2043.6,2.89422798]
[1773175023044,3.03983159,2044.3,2043.6,2.89422798]
[1773175023237,6.409,2044.4,2044.0,2.89422798]
[1773175023442,9.44883159,2044.4,2044.0,2.89422798]
[1773175023647,3.03983159,2044.3,2044.0,2.89422798]
[1773175025852,3.03983159,2044.0,2043.6,2.89422798]
[1773175026245,3.03983159,2044.1,2043.6,2.89422798]
[1773175027647,3.03983159,2044.1,2043.4,0.00436177]
[1773175027948,3.03983159,2043.9,2043.4,2.89858975]
[1773175028946,3.03983159,2043.9,2043.4,0.00436177]
[1773175029152,3.03983159,2043.8,2043.4,0.00436177]
[1773175030447,3.03983159,2044.0,2043.4,2.89858975]
[1773175030649,3.03983159,2044.0,2043.5,2.89422798]
[1773175030849,9.44883159,2044.0,2043.5,2.89422798]
[1773175031148,3.03983159,2043.9,2043.5,2.89422798]
[1773175033047,3.03983159,2043.9,2043.4,2.89858975]
[1773175033251,3.03983159,2043.9,2043.4,0.00436177]
[1773175033554,3.03983159,2043.9,2043.4,2.89858975]
[1773175035362,9.44883159,2044.0,2043.4,2.89858975]
[1773175036851,3.03983159,2043.9,2043.4,2.89858975]
[1773175038548,9.44883159,2044.0,2043.4,2.89858975]
[1773175039350,2.96946198,2043.9,2043.4,2.89858975]
[1773175041757,0.2446,2044.1,2043.4,2.89858975]
[1773175042057,2.96946198,2044.0,2043.4,2.89858975]
[1773175043259,2.96946198,2043.8,2043.4,0.00436177]
[1773175043756,2.96946198,2043.8,2043.4,3.04085235]
[1773175043957,6.409,2043.8,2043.4,3.04085235]
[1773175044853,2.39546199,2043.7,2043.4,0.00436177]
[1773175045057,2.96946198,2044.0,2043.4,3.04085235]
[1773175045458,9.37846198,2044.2,2043.4,3.04085235]
[1773175045657,2.96946198,2044.1,2043.4,3.04085235]
[1773175050359,6.408,2044.3,2043.7,3.03649058]
[1773175050862,9.37746198,2044.3,2043.7,3.03649058]
[1773175051059,2.96946198,2044.2,2043.5,3.03649058]
[1773175052762,6.408,2044.3,2043.4,0.00436177]
[1773175052763,2.96946198,2044.0,2043.4,3.04085235]
[1773175052960,2.96946198,2043.8,2043.4,3.04085235]
[1773175054261,2.96946198,2044.0,2043.4,3.04085235]
[1773175054460,9.37746198,2044.0,2043.4,3.04085235]
[1773175055762,2.96946198,2043.9,2043.4,3.04085235]
[1773175060166,9.37746198,2044.0,2043.4,3.04085235]
[1773175065473,2.96946198,2043.9,2043.4,3.04085235]
[1773175065777,2.96946198,2043.9,2043.4,0.00436177]
[1773175066070,2.96946198,2043.9,2043.0,3.03649058]
[1773175066372,2.96946198,2043.7,2043.0,3.03649058]
[1773175067072,2.96946198,2043.7,2043.0,3.04265435]
[1773175078274,6.408,2044.0,2042.8,2.97835374]
[1773175078275,2.71600001,2043.5,2042.8,2.97835374]
[1773175078674,2.71600001,2043.4,2042.8,2.97835374]
[1773175079078,2.71600001,2043.6,2042.8,2.97835374]
[1773175079277,2.72226984,2043.6,2042.8,2.9838224]
[1773175082372,2.71600001,2043.2,2042.8,8.66e-06]
[1773175082568,2.71600001,2043.2,2042.4,2.97835374]
[1773175083574,2.71600001,2043.2,2042.4,2.98274526]
[1773175103196,2.81503392,2043.1,2042.4,2.98274526]
[1773175104194,2.81503392,2043.0,2042.4,0.00439152]
[1773175104500,2.81503392,2042.8,2042.2,2.72810805]
[1773175105488,2.81503392,2042.8,2042.2,2.73421769]
[1773175107299,2.81503392,2042.8,2042.3,2.72810805]
[1773175108698,2.81503392,2042.7,2042.0,2.72810805]
[1773175109498,2.81503392,2042.6,2042.0,2.72810805]
[1773175109699,2.81503392,2042.6,2042.0,2.73395232]
[1773175113906,2.81503392,2042.4,2041.7,2.74810805]
[1773175114403,6.41,2042.8,2042.2,1.91665733]
[1773175114604,2.81503392,2042.8,2042.5,2.72810805]
[1773175114903,2.81503392,2042.8,2042.5,2.73214589]
[1773175115301,6.41,2043.0,2042.5,2.73214589]
[1773175115609,2.81503392,2043.2,2042.7,2.72810805]
[1773175119407,2.81503392,2043.2,2042.6,1.91665733]
[1773175119408,2.81503392,2043.2,2042.6,2.72810805]
[1773175123902,2.81503392,2042.9,2042.5,2.73214589]
[1773175124101,2.81503392,2043.3,2042.7,1.91665733]
[1773175124302,2.81503392,2043.3,2042.8,2.72810805]
[1773175125511,3.05972392,2043.3,2042.6,2.72810805]
[1773175128997,3.05972392,2043.3,2042.5,2.71759871]
[1773175130310,2.47771902,2043.1,2042.5,2.71759871]
[1773175131210,2.47771902,2043.1,2042.6,2.5829265]
[1773175133311,6.409,2043.2,2042.6,2.5829265]
[1773175133610,2.47771902,2043.4,2043.0,2.5829265]
[1773175136817,8.89298885,2043.6,2043.1,2.5829265]
[1773175137318,2.47771902,2043.5,2043.1,2.5829265]
[1773175137513,2.47771902,2043.5,2042.9,2.5829265]
[1773175137711,1.91665733,2043.4,2042.6,2.5829265]
[1773175137916,2.47771902,2043.3,2042.6,2.5829265]
[1773175141710,2.47771902,2043.5,2043.0,2.5829265]
[1773175141917,2.48398885,2043.6,2043.0,2.5829265]
[1773175145420,2.47771902,2044.0,2043.3,1.91665733]
[1773175145615,2.47771902,2044.0,2043.4,2.5829265]
[1773175146421,2.4812481,2044.0,2043.4,2.5829265]
[1773175147820,2.4812481,2044.0,2043.5,2.5829265]
[1773175148119,2.47771902,2044.5,2044.0,2.5829265]
[1773175149011,0.00582568,2044.5,2044.0,2.58864798]
[1773175149216,2.4835447,2044.5,2044.0,2.58864798]
[1773175149419,2.47771902,2045.1,2044.4,2.5829265]
[1773175150416,2.483106,2045.1,2044.4,2.5829265]
[1773175150817,2.483106,2045.1,2044.8,2.5829265]
[1773175151018,0.27594984,2045.1,2044.8,2.5829265]
[1773175151325,2.47771902,2045.1,2044.8,2.5829265]
[1773175151720,2.47771902,2045.1,2044.3,2.5829265]
[1773175152120,2.48373815,2045.1,2044.3,2.5829265]
[1773175166543,0.24448,2045.0,2044.1,2.5607999]
[1773175166742,2.80286383,2045.0,2044.1,2.5607999]
[1773175168245,2.56440296,2045.1,2044.1,2.5607999]
[1773175170639,2.55838383,2045.4,2044.3,2.5607999]
[1773175170843,2.55838383,2045.8,2044.7,2.5607999]
[1773175171437,2.55838383,2045.8,2044.9,2.5607999]
[1773175171639,0.00626181,2045.8,2045.2,2.5607999]
[1773175171835,2.56464564,2045.8,2045.2,2.5607999]
[1773175183566,0.00626181,2045.8,2045.3,2.5607999]
[1773175183762,2.55838383,2046.0,2045.3,2.5607999]
[1773175184861,2.56432179,2046.0,2045.3,2.5607999]
[1773175188562,0.00593796,2046.0,2045.3,2.5607999]
[1773175191066,2.3878938,2046.0,2045.3,2.5607999]
[1773175194465,2.38195584,2045.9,2045.2,6.719]
[1773175194868,2.38195584,2045.9,2045.3,2.60987467]
[1773175195368,2.38195584,2045.7,2045.2,9.32887467]
[1773175195767,2.38195584,2045.7,2045.1,2.60987467]
[1773175195969,2.38195584,2045.5,2045.1,2.60987467]
[1773175197169,2.38195584,2045.5,2045.0,2.60987467]
[1773175197377,2.38195584,2045.1,2044.6,2.60987467]
[1773175199377,2.62641584,2045.2,2044.6,2.60987467]
[1773175200379,2.62641584,2045.2,2044.5,9.34787467]
[1773175200978,2.38195584,2044.6,2044.1,2.60987467]
[1773175201178,2.38195584,2044.6,2044.2,2.60987467]
[1773175202878,2.62647584,2044.7,2044.2,2.60987467]
[1773175203877,2.38195584,2044.7,2044.2,2.60987467]
[1773175205078,0.24453,2044.6,2044.1,6.756]
[1773175205273,2.38195584,2044.5,2044.0,0.00572148]
[1773175205479,2.38711907,2044.5,2044.0,0.00572148]
[1773175205879,2.38711907,2044.5,2044.0,2.61559615]
[1773175215187,0.00516323,2044.5,2044.0,2.61559615]
[1773175215390,2.38711907,2044.5,2044.0,2.61559615]
[1773175216288,2.38711907,2044.5,2044.0,1.48e-06]
[1773175216490,2.38195584,2044.2,2043.5,2.60987467]
[1773175216684,2.62653584,2044.2,2043.4,2.60987467]
[1773175217591,4.54134947,2044.2,2043.4,2.61541887]
[1773175217791,2.38195584,2044.1,2043.4,2.61541887]
[1773175220288,2.46645664,2044.2,2043.4,2.61541887]
[1773175220490,0.00516323,2044.5,2043.4,2.61541887]
[1773175220888,0.00516323,2044.5,2043.6,2.43361403]
[1773175221290,2.47161987,2044.5,2043.6,2.43361403]
[1773175230501,2.47161987,2044.5,2043.8,2.43361403]
[1773175233102,2.47161987,2044.5,2043.6,2.43361403]
[1773175233504,2.46645664,2044.4,2043.6,2.43361403]
[1773175241818,1.91429236,2044.3,2043.6,2.43361403]
[1773175242123,2.46645664,2044.2,2043.6,2.43361403]
[1773175244320,1.91429236,2044.1,2043.6,2.43361403]
[1773175244520,2.46645664,2044.0,2043.6,2.43361403]
[1773175246622,2.46645664,2044.2,2043.6,2.43361403]
[1773175262443,2.46645664,2044.2,2043.5,9.2834222]
[1773175262740,2.30314369,2044.0,2043.5,9.2834222]
[1773175263140,2.30314369,2044.0,2043.6,2.3974222]
[1773175265038,2.30314369,2044.2,2043.6,4.31171456]
[1773175265243,2.30314369,2044.4,2043.9,2.3974222]
[1773175269741,2.30314369,2044.4,2043.5,2.3974222]
[1773175269742,2.30314369,2044.2,2043.5,2.3974222]
[1773175269949,2.30314369,2044.1,2043.5,2.3974222]
[1773175270143,2.30314369,2044.1,2043.6,2.3974222]
[1773175270749,2.30314369,2044.2,2043.6,2.3974222]
[1773175274142,2.30314369,2044.1,2043.6,2.3974222]
[1773175278752,2.30314369,2044.3,2043.6,2.3974222]
[1773175284152,2.21451643,2044.5,2043.6,2.3974222]
[1773175291155,2.21451643,2044.5,2043.8,2.12856106]
[1773175291349,0.00516323,2044.5,2043.8,2.12856106]
[1773175291853,0.00516323,2044.5,2043.8,9.19156106]
[1773175292053,0.00516323,2044.5,2043.9,2.12856106]
[1773175294756,2.21451643,2044.5,2043.9,2.12856106]
[1773175311565,0.00516323,2044.5,2043.9,2.12856106]
[1773175312665,0.00516323,2044.5,2043.9,4.04320615]
[1773175312860,2.12286032,2044.7,2044.0,2.05121597]
[1773175313168,2.12286032,2045.1,2044.0,2.05121597]
[1773175313563,2.12286032,2045.1,2044.3,2.05121597]
[1773175313765,2.12761292,2045.1,2044.4,2.05121597]
[1773175314563,0.0047526,2045.1,2044.6,2.05121597]
[1773175314763,2.12286032,2045.3,2044.6,2.05121597]
[1773175315672,2.12829412,2045.3,2044.6,2.05121597]
[1773175331385,0.0054338,2045.3,2044.6,2.05121597]
[1773175331683,2.01593362,2045.3,2044.6,2.05121597]
[1773175338986,0.0054338,2045.3,2044.6,2.05121597]
[1773175339587,1.92274457,2045.8,2045.3,2.03117239]
[1773175340385,1.92274457,2046.1,2045.5,2.03117239]
[1773175340582,0.00496081,2046.1,2045.8,1.91124381]
[1773175340790,1.36409421,2046.4,2046.1,2.03117239]
[1773175340986,1.91124381,2046.3,2045.7,2.03117239]
[1773175341189,1.40805776,2046.2,2045.7,2.03117239]
[1773175341891,1.41157246,2046.2,2045.7,2.03117239]
[1773175342189,1.4210616,2045.9,2045.5,0.00363697]
[1773175342393,1.4210616,2045.9,2045.2,2.03117239]
[1773175342688,1.4205357,2045.7,2045.2,2.03117239]
[1773175343291,1.4205357,2045.7,2045.2,2.03683679]
[1773175345293,1.44513702,2045.5,2045.2,0.0056644]
[1773175345489,1.44513702,2045.5,2045.0,2.03117239]
[1773175346490,1.44513702,2045.5,2045.0,2.03536199]
[1773175346992,1.43218893,2045.8,2045.0,2.03536199]
[1773175347892,3.34343274,2045.8,2045.0,2.03536199]
[1773175348094,1.38105295,2045.7,2045.0,2.03536199]
[1773175360402,1.38794965,2045.1,2044.8,2.03117239]
[1773175360602,3.83398838,2045.2,2044.8,1.4571724]
[1773175361302,1.92274457,2045.1,2044.8,1.4571724]
[1773175361498,1.92274457,2045.1,2044.3,7.199]
[1773175361698,1.92274457,2044.9,2044.4,2.03117239]
[1773175362402,1.92274457,2044.9,2044.4,2.03625626]
[1773175362607,0.24445,2045.3,2044.4,2.03625626]
[1773175362608,1.92274457,2044.7,2044.4,2.03625626]
[1773175362805,1.92274457,2044.7,2044.4,1.59970929]
[1773175362806,1.92901151,2044.7,2044.4,1.59970929]
[1773175364201,1.92901151,2044.7,2044.4,0.00508387]
[1773175364402,1.92901151,2044.7,2044.4,2.03625626]
[1773175365401,1.92901151,2044.7,2044.4,0.00508387]
[1773175366302,1.92901151,2044.7,2044.4,2.03625626]
[1773175367304,0.00626694,2044.7,2044.4,2.03625626]
[1773175367506,2.12035643,2045.1,2044.4,2.03625626]
[1773175368407,2.12501543,2045.1,2044.4,2.03625626]
[1773175369711,2.0214092,2044.9,2044.4,2.03625626]
[1773175369913,2.0214092,2044.9,2044.4,0.00508387]
[1773175370114,2.0214092,2044.9,2044.4,1.96845236]
[1773175374611,2.0214092,2044.7,2044.4,0.00508387]
[1773175376016,2.0214092,2044.7,2044.2,1.96336849]
[1773175377110,2.0214092,2044.7,2044.2,1.96916602]
[1773175379609,2.0214092,2044.7,2044.1,1.96336849]
[1773175379814,2.0214092,2044.5,2044.1,1.96336849]
[1773175380319,1.91124381,2044.4,2043.7,1.96336849]
[1773175380510,2.0214092,2044.3,2043.7,1.96336849]
[1773175380710,2.0214092,2044.3,2043.7,3.87862788]
[1773175381017,2.0214092,2044.1,2043.7,1.96738407]
[1773175383021,2.0214092,2044.1,2043.7,0.00401558]
[1773175383226,2.0214092,2044.1,2043.5,1.96336849]
[1773175384129,2.0214092,2044.1,2043.5,1.96969152]
[1773175387429,2.0214092,2043.9,2043.5,1.96969152]
[1773175387627,2.0214092,2043.5,2043.1,1.96336849]
[1773175387830,2.0214092,2043.4,2042.8,1.96336849]
[1773175388222,1.91124381,2043.0,2042.3,1.96336849]
[1773175388528,2.0269236,2043.0,2042.3,1.96760708]
[1773175388729,2.0269236,2043.0,2042.4,1.96336849]
[1773175391626,2.0269236,2043.0,2042.3,0.00423859]
[1773175391827,2.0214092,2042.5,2042.0,1.96336849]
[1773175392821,2.0214092,2042.5,2042.0,1.96819561]
[1773175393524,2.0214092,2042.7,2042.1,1.96336849]
[1773175401530,2.11642804,2043.0,2042.6,1.94539861]
[1773175402035,2.11642804,2043.0,2042.1,1.94539861]
[1773175410740,2.11091364,2042.8,2042.1,1.94539861]
[1773175414036,2.11091364,2042.6,2042.1,1.94539861]
[1773175414238,2.11091364,2042.6,2042.0,0.00482712]
[1773175414433,2.11091364,2042.4,2041.6,1.94539861]
[1773175415544,2.11091364,2042.4,2041.6,1.95008102]
[1773175421741,2.11091364,2042.8,2041.6,1.95008102]
[1773175421947,6.4155144,2043.0,2041.6,1.95008102]
[1773175421948,2.11091364,2042.4,2041.6,1.95008102]
[1773175422446,2.11091364,2042.8,2041.6,1.95008102]
[1773175426547,8.51991364,2042.8,2041.6,1.95008102]
[1773175426744,2.11091364,2042.7,2041.6,1.95008102]
[1773175427344,1.94054523,2042.5,2041.6,1.95008102]
[1773175431844,2.03840661,2041.9,2041.1,2.06943548]
[1773175432150,2.03840661,2041.8,2040.8,2.06943548]
[1773175432747,2.03840661,2041.8,2040.8,2.07534494]
[1773175435654,2.03840661,2041.8,2040.9,2.06943548]
[1773175438056,2.03840661,2042.4,2041.5,2.06943548]
[1773175446266,2.03840661,2042.4,2041.2,2.06943548]
[1773175446652,2.03840661,2042.2,2041.2,2.06943548]
[1773175447753,2.03840661,2042.2,2041.4,2.06943548]
[1773175447954,2.03840661,2042.2,2041.6,2.06943548]
[1773175452557,2.03840661,2042.2,2041.3,2.06943548]
[1773175452753,2.03840661,2042.0,2040.9,2.06943548]
[1773175453156,2.03840661,2042.0,2040.9,2.31440548]
[1773175453562,2.03840661,2042.0,2041.3,2.06943548]
[1773175453760,2.03840661,2042.0,2041.4,2.06943548]
[1773175454661,2.03840661,2042.4,2041.4,2.06943548]
[1773175462971,4.08992233,2042.8,2041.3,7.255]
[1773175462972,1.86455553,2042.6,2041.6,1.88219657]
[1773175465372,1.86455553,2042.4,2041.5,1.88219657]
[1773175470481,1.86455553,2042.2,2041.5,1.88219657]
[1773175470672,1.86455553,2042.0,2041.3,1.88219657]
[1773175474682,1.86455553,2042.0,2041.1,1.88219657]
[1773175479686,1.86455553,2041.9,2041.1,1.88219657]
[1773175480384,1.86455553,2042.1,2041.3,1.88219657]
[1773175480785,1.86455553,2042.0,2041.3,1.88219657]
[1773175487590,1.86455553,2042.0,2041.1,1.77194922]
[1773175489192,1.86455553,2042.0,2041.3,1.77194922]
[1773175491890,1.86455553,2042.0,2041.5,1.73373405]
[1773175492993,1.74089905,2042.3,2041.7,1.73373405]
[1773175493195,1.74089905,2042.8,2042.1,1.73373405]
[1773175494493,1.74089905,2042.8,2042.2,1.73373405]
[1773175497094,1.74089905,2042.8,2042.4,1.73373405]
[1773175497391,1.74089905,2042.8,2042.4,1.73846931]
[1773175498089,1.74089905,2043.5,2042.8,1.73373405]
[1773175498293,1.74089905,2043.5,2043.1,1.73373405]
[1773175498993,1.74089905,2043.9,2043.1,1.73373405]
[1773175499194,0.00372729,2043.5,2043.3,1.73373405]
[1773175499397,1.74089905,2043.7,2043.3,1.73373405]
[1773175500298,1.74676246,2043.7,2043.3,1.73373405]
[1773175500696,1.74676246,2043.7,2042.7,1.73373405]
[1773175501696,1.74089905,2043.6,2042.7,1.73373405]
[1773175502991,1.74089905,2043.6,2042.4,0.00473526]
[1773175503199,1.74089905,2043.4,2042.5,1.73373405]
[1773175503388,1.74089905,2043.4,2042.4,1.73846931]
[1773175504298,1.74089905,2043.2,2042.4,0.00473526]
[1773175504488,1.74089905,2043.2,2042.4,1.73846931]
[1773175506702,1.74089905,2043.6,2042.4,1.73846931]
[1773175516202,1.74089905,2043.6,2042.6,1.73373405]
[1773175516401,1.74089905,2043.6,2042.7,1.73373405]
[1773175521705,1.74089905,2043.6,2042.9,1.80608994]
[1773175522306,1.74089905,2043.6,2043.1,1.80608994]
[1773175523802,1.74089905,2043.6,2042.8,1.80608994]
[1773175524004,1.73988546,2043.5,2042.8,1.80608994]
[1773175524307,1.73988546,2043.5,2042.5,1.80608994]
[1773175528004,1.73988546,2043.3,2042.5,1.80608994]
[1773175528405,1.73988546,2043.1,2042.4,0.00473526]
[1773175528909,1.73988546,2043.1,2042.4,1.8108252]
[1773175532105,1.73988546,2043.5,2042.4,1.8108252]
[1773175532307,1.74574887,2043.7,2042.8,1.80608994]
[1773175532505,0.00586341,2043.7,2043.1,1.80608994]
[1773175534202,1.74574887,2043.7,2043.1,1.80608994]
[1773175534402,1.74574887,2043.7,2042.8,1.80608994]
[1773175536817,1.99039887,2043.7,2042.8,1.80608994]
[1773175541214,1.99039887,2043.7,2042.6,1.80608994]
[1773175542421,1.98454546,2043.5,2042.6,1.80608994]
[1773175542623,1.98454546,2043.5,2042.4,1.8108252]
[1773175548028,1.7698906,2043.0,2042.4,0.00473526]
[1773175549727,1.7698906,2043.0,2042.1,1.72930563]
[1773175550425,1.85449339,2042.8,2042.1,1.72930563]
[1773175550632,1.85449339,2042.6,2042.1,0.00494817]
[1773175550830,1.85449339,2042.5,2041.8,1.72930563]
[1773175551733,1.85449339,2042.5,2041.8,1.73319708]